[Event "Late-Titled-Tuesday-Blitz-March-19-2024"]
[Site "Chess.com"]
[Date "2024.03.19"]
[Round "7"]
[White "M1711"]
[Black "Byniolus"]
[Result "1/2-1/2"]
[WhiteElo "2657"]
[BlackElo "2782"]
[TimeControl "180+1"]
[EndTime "15:17:07 PDT"]
[Termination "Game drawn by stalemate"]

1. e4 {[%clk 0:03:00.9]} 1... d6 {[%clk 0:03:00]} 2. d4 {[%clk 0:02:56.7]} 2...
Nf6 {[%clk 0:03:00.9]} 3. Nc3 {[%clk 0:02:56]} 3... c6 {[%clk 0:03:01.5]} 4. f4
{[%clk 0:02:51.3]} 4... Qb6 {[%clk 0:03:01.5]} 5. Nf3 {[%clk 0:02:49.4]} 5...
Bg4 {[%clk 0:03:01.4]} 6. e5 {[%clk 0:02:43.5]} 6... Nd5 {[%clk 0:03:01]} 7.
Nxd5 {[%clk 0:02:42.3]} 7... cxd5 {[%clk 0:03:01.9]} 8. c3 {[%clk 0:02:42.8]}
8... e6 {[%clk 0:03:01.9]} 9. h3 {[%clk 0:02:38.5]} 9... Bf5 {[%clk 0:03:01.7]}
10. Bd3 {[%clk 0:02:35.8]} 10... g6 {[%clk 0:03:01.7]} 11. O-O {[%clk
0:02:19.5]} 11... Nc6 {[%clk 0:03:01.1]} 12. b4 {[%clk 0:02:06.2]} 12... Be7
{[%clk 0:02:59.5]} 13. Kh2 {[%clk 0:02:03.7]} 13... Qc7 {[%clk 0:02:52.1]} 14.
Be3 {[%clk 0:01:59.3]} 14... O-O-O {[%clk 0:02:43.4]} 15. a4 {[%clk 0:01:57.1]}
15... Kb8 {[%clk 0:02:42.4]} 16. a5 {[%clk 0:01:55.5]} 16... Rc8 {[%clk
0:02:42.8]} 17. Bxf5 {[%clk 0:01:39.7]} 17... gxf5 {[%clk 0:02:43.7]} 18. Qa4
{[%clk 0:01:38]} 18... Nd8 {[%clk 0:02:21.4]} 19. Rfc1 {[%clk 0:01:35.4]} 19...
Rg8 {[%clk 0:02:17.3]} 20. b5 {[%clk 0:01:27.7]} 20... Qc4 {[%clk 0:02:16.2]}
21. Qxc4 {[%clk 0:01:08.7]} 21... Rxc4 {[%clk 0:02:17.1]} 22. Bd2 {[%clk
0:00:57.1]} 22... a6 {[%clk 0:01:59.2]} 23. bxa6 {[%clk 0:00:55.7]} 23... bxa6
{[%clk 0:02:00.1]} 24. Rab1+ {[%clk 0:00:46.9]} 24... Ka7 {[%clk 0:02:00]} 25.
Rb6 {[%clk 0:00:42.7]} 25... Nc6 {[%clk 0:01:54.8]} 26. Rcb1 {[%clk 0:00:26.6]}
26... Rb8 {[%clk 0:01:51.1]} 27. exd6 {[%clk 0:00:22.8]} 27... Bxd6 {[%clk
0:01:49.4]} 28. Ng5 {[%clk 0:00:23]} 28... Nxa5 {[%clk 0:01:33.2]} 29. Rxb8
{[%clk 0:00:23.3]} 29... Bxb8 {[%clk 0:01:34.1]} 30. Nxh7 {[%clk 0:00:20.4]}
30... Rc8 {[%clk 0:01:27.1]} 31. Ng5 {[%clk 0:00:16.3]} 31... Nc4 {[%clk
0:01:28]} 32. Bc1 {[%clk 0:00:14]} 32... Nd6 {[%clk 0:01:28.6]} 33. Rb3 {[%clk
0:00:12]} 33... Ne4 {[%clk 0:01:22.4]} 34. Nxf7 {[%clk 0:00:10.6]} 34... Nxc3
{[%clk 0:01:19.7]} 35. Ba3 {[%clk 0:00:08.3]} 35... Bxf4+ {[%clk 0:00:55.8]} 36.
g3 {[%clk 0:00:07.7]} 36... Bd2 {[%clk 0:00:44.8]} 37. Bc5+ {[%clk 0:00:06.6]}
37... Ka8 {[%clk 0:00:45.4]} 38. h4 {[%clk 0:00:05.4]} 38... Ne4 {[%clk
0:00:40.6]} 39. h5 {[%clk 0:00:04.3]} 39... Rc7 {[%clk 0:00:29.8]} 40. Ne5
{[%clk 0:00:02.8]} 40... f4 {[%clk 0:00:27.7]} 41. g4 {[%clk 0:00:02.2]} 41...
Be3 {[%clk 0:00:17.6]} 42. Kg2 {[%clk 0:00:02.3]} 42... Nxc5 {[%clk 0:00:13.8]}
43. dxc5 {[%clk 0:00:02.6]} 43... Bxc5 {[%clk 0:00:14.7]} 44. h6 {[%clk
0:00:02.8]} 44... Bd6 {[%clk 0:00:11.5]} 45. Nf3 {[%clk 0:00:02.1]} 45... e5
{[%clk 0:00:11.6]} 46. g5 {[%clk 0:00:01.9]} 46... e4 {[%clk 0:00:12.1]} 47. g6
{[%clk 0:00:02.3]} 47... exf3+ {[%clk 0:00:07.6]} 48. Kxf3 {[%clk 0:00:03.2]}
48... Bf8 {[%clk 0:00:06.3]} 49. g7 {[%clk 0:00:01.9]} 49... Bxg7 {[%clk
0:00:06.6]} 50. hxg7 {[%clk 0:00:02.7]} 50... Rxg7 {[%clk 0:00:07.3]} 51. Kxf4
{[%clk 0:00:03]} 51... Rd7 {[%clk 0:00:03]} 52. Ke5 {[%clk 0:00:03.1]} 52... d4
{[%clk 0:00:03.3]} 53. Rd3 {[%clk 0:00:03.8]} 53... Ka7 {[%clk 0:00:03.7]} 54.
Rxd4 {[%clk 0:00:04.4]} 54... Re7+ {[%clk 0:00:04.1]} 55. Kd6 {[%clk 0:00:03.7]}
55... Re1 {[%clk 0:00:03.4]} 56. Kc5 {[%clk 0:00:03.5]} 56... Rb1 {[%clk
0:00:03.5]} 57. Rd7+ {[%clk 0:00:03.7]} 57... Rb7 {[%clk 0:00:03.7]} 58. Rxb7+
{[%clk 0:00:03.9]} 58... Kxb7 {[%clk 0:00:04.6]} 59. Kb4 {[%clk 0:00:04.7]}
59... Kb6 {[%clk 0:00:05.1]} 60. Ka3 {[%clk 0:00:05.6]} 60... a5 {[%clk
0:00:06]} 61. Ka2 {[%clk 0:00:06.5]} 61... Kb5 {[%clk 0:00:06.9]} 62. Ka1 {[%clk
0:00:07.4]} 62... a4 {[%clk 0:00:07.8]} 63. Kb1 {[%clk 0:00:08.3]} 63... Kb4
{[%clk 0:00:08.7]} 64. Ka1 {[%clk 0:00:09.2]} 64... a3 {[%clk 0:00:09.6]} 65.
Kb1 {[%clk 0:00:10.1]} 65... Kb3 {[%clk 0:00:10.5]} 66. Ka1 {[%clk 0:00:11]}
66... a2 {[%clk 0:00:11.4]} 1/2-1/2

[Event "Late-Titled-Tuesday-Blitz-March-19-2024"]
[Site "Chess.com"]
[Date "2024.03.19"]
[Round "7"]
[White "DanielNaroditsky"]
[Black "MagnusCarlsen"]
[Result "1-0"]
[WhiteElo "3182"]
[BlackElo "3255"]
[TimeControl "180+1"]
[EndTime "15:17:12 PDT"]
[Termination "DanielNaroditsky won on time"]

1. e4 {[%clk 0:03:00.9]} 1... c5 {[%clk 0:02:59]} 2. c3 {[%clk 0:03:01.1]} 2...
e5 {[%clk 0:02:55.5]} 3. Nf3 {[%clk 0:03:00.7]} 3... Nc6 {[%clk 0:02:55.7]} 4.
Bc4 {[%clk 0:03:01]} 4... Nf6 {[%clk 0:02:55.6]} 5. Ng5 {[%clk 0:02:55.6]} 5...
d5 {[%clk 0:02:55.1]} 6. exd5 {[%clk 0:02:56.5]} 6... Nxd5 {[%clk 0:02:54.7]} 7.
d4 {[%clk 0:02:52.8]} 7... cxd4 {[%clk 0:02:51.3]} 8. Qf3 {[%clk 0:02:51.9]}
8... Be6 {[%clk 0:02:50.4]} 9. Nxe6 {[%clk 0:02:49.1]} 9... fxe6 {[%clk
0:02:51.3]} 10. O-O {[%clk 0:02:35.9]} 10... Bc5 {[%clk 0:02:38.2]} 11. Nd2
{[%clk 0:02:16.4]} 11... Qd7 {[%clk 0:02:27]} 12. Ne4 {[%clk 0:02:16.1]} 12...
Bb6 {[%clk 0:02:18]} 13. Qh5+ {[%clk 0:02:08.4]} 13... Kd8 {[%clk 0:02:11.8]}
14. Bb5 {[%clk 0:01:48.1]} 14... Qe8 {[%clk 0:01:53.1]} 15. Qg5+ {[%clk
0:01:27.9]} 15... Kc7 {[%clk 0:01:20.2]} 16. c4 {[%clk 0:01:28.3]} 16... Qg6
{[%clk 0:00:49]} 17. cxd5 {[%clk 0:01:18.8]} 17... exd5 {[%clk 0:00:49]} 18.
Qxg6 {[%clk 0:01:09.8]} 18... hxg6 {[%clk 0:00:49.9]} 19. Ng5 {[%clk 0:01:09.8]}
19... Rae8 {[%clk 0:00:43.9]} 20. Bd2 {[%clk 0:00:54.3]} 20... a6 {[%clk
0:00:43.7]} 21. Ba4 {[%clk 0:00:52]} 21... Rhf8 {[%clk 0:00:42]} 22. g3 {[%clk
0:00:43.9]} 22... d3 {[%clk 0:00:41.6]} 23. Rac1 {[%clk 0:00:42.2]} 23... Kd6
{[%clk 0:00:41.3]} 24. Kg2 {[%clk 0:00:39.7]} 24... e4 {[%clk 0:00:34.2]} 25.
Bf4+ {[%clk 0:00:39.1]} 25... Rxf4 {[%clk 0:00:34.1]} 26. gxf4 {[%clk 0:00:40]}
26... Rf8 {[%clk 0:00:34.4]} 27. Nh3 {[%clk 0:00:21.1]} 27... Nd4 {[%clk
0:00:32.6]} 28. Bd1 {[%clk 0:00:20.5]} 28... Ne6 {[%clk 0:00:14.6]} 29. Kg3
{[%clk 0:00:20.7]} 29... Ba5 {[%clk 0:00:12.2]} 30. Bg4 {[%clk 0:00:16.8]} 30...
Bd2 {[%clk 0:00:12.2]} 31. Rcd1 {[%clk 0:00:16.5]} 31... Bxf4+ {[%clk
0:00:12.1]} 32. Nxf4 {[%clk 0:00:14.5]} 32... Nxf4 {[%clk 0:00:13]} 33. Rd2
{[%clk 0:00:10.9]} 33... d4 {[%clk 0:00:07.7]} 34. Re1 {[%clk 0:00:10.4]} 34...
Kd5 {[%clk 0:00:08.1]} 35. h4 {[%clk 0:00:09.8]} 35... a5 {[%clk 0:00:07]} 36.
a4 {[%clk 0:00:08.6]} 36... Rf6 {[%clk 0:00:06.6]} 37. Bc8 {[%clk 0:00:06.4]}
37... Nh5+ {[%clk 0:00:06.4]} 38. Kg2 {[%clk 0:00:06.9]} 38... Nf4+ {[%clk
0:00:06.4]} 39. Kg1 {[%clk 0:00:06.1]} 39... Rb6 {[%clk 0:00:05.5]} 40. Bg4
{[%clk 0:00:03.6]} 40... Rb4 {[%clk 0:00:05.3]} 41. Bd1 {[%clk 0:00:03.7]} 41...
b5 {[%clk 0:00:02.5]} 42. Kh2 {[%clk 0:00:04.4]} 42... bxa4 {[%clk 0:00:02.6]}
43. Kg3 {[%clk 0:00:05.2]} 43... Ke5 {[%clk 0:00:02.2]} 44. Bf3 {[%clk
0:00:03.3]} 44... Nh5+ {[%clk 0:00:02.6]} 45. Kg2 {[%clk 0:00:01.9]} 45... Nf4+
{[%clk 0:00:02.4]} 46. Kg3 {[%clk 0:00:02.4]} 46... Nh5+ {[%clk 0:00:02.6]} 47.
Kh2 {[%clk 0:00:03.2]} 47... Nf6 {[%clk 0:00:02.8]} 48. Bxe4 {[%clk 0:00:04]}
48... Nxe4 {[%clk 0:00:03.2]} 49. f3 {[%clk 0:00:04.8]} 49... Kf4 {[%clk
0:00:03]} 50. fxe4 {[%clk 0:00:05.4]} 50... Ke5 {[%clk 0:00:03]} 51. Kg3 {[%clk
0:00:05.9]} 51... Rb3 {[%clk 0:00:03.4]} 52. Kf3 {[%clk 0:00:06.6]} 52... a3
{[%clk 0:00:03.7]} 53. bxa3 {[%clk 0:00:07.5]} 53... Rxa3 {[%clk 0:00:04.6]} 54.
Red1 {[%clk 0:00:07.2]} 54... Rc3 {[%clk 0:00:02.4]} 55. Rxd3 {[%clk 0:00:07.2]}
55... Rc4 {[%clk 0:00:03.3]} 56. Rb1 {[%clk 0:00:06.7]} 56... Rc5 {[%clk
0:00:03.2]} 57. Rb8 {[%clk 0:00:07]} 57... a4 {[%clk 0:00:03.5]} 58. Re8+ {[%clk
0:00:07.4]} 1-0

[Event "Late-Titled-Tuesday-Blitz-March-19-2024"]
[Site "Chess.com"]
[Date "2024.03.19"]
[Round "7"]
[White "Rud_Makarian"]
[Black "bascheyaro"]
[Result "1-0"]
[WhiteElo "3001"]
[BlackElo "2792"]
[TimeControl "180+1"]
[EndTime "15:17:27 PDT"]
[Termination "Rud_Makarian won on time"]

1. d4 {[%clk 0:03:00.9]} 1... d5 {[%clk 0:02:59.9]} 2. c4 {[%clk 0:03:01.8]}
2... c6 {[%clk 0:03:00.1]} 3. Nf3 {[%clk 0:03:02.7]} 3... Nf6 {[%clk 0:03:00.4]}
4. Nc3 {[%clk 0:03:03.4]} 4... a6 {[%clk 0:03:00.7]} 5. g3 {[%clk 0:03:03.2]}
5... Bf5 {[%clk 0:03:00.6]} 6. Bg2 {[%clk 0:03:03.1]} 6... e6 {[%clk 0:03:01.1]}
7. Nh4 {[%clk 0:03:03.1]} 7... Bg6 {[%clk 0:02:54.4]} 8. Nxg6 {[%clk 0:03:02.9]}
8... hxg6 {[%clk 0:02:55.3]} 9. O-O {[%clk 0:03:03.4]} 9... Nbd7 {[%clk
0:02:55.1]} 10. b3 {[%clk 0:02:58.3]} 10... Bd6 {[%clk 0:02:50.7]} 11. e4 {[%clk
0:02:54.7]} 11... dxe4 {[%clk 0:02:50]} 12. Nxe4 {[%clk 0:02:55.6]} 12... Nxe4
{[%clk 0:02:50]} 13. Bxe4 {[%clk 0:02:56.5]} 13... Nf6 {[%clk 0:02:50.4]} 14.
Bf3 {[%clk 0:02:55.8]} 14... Qe7 {[%clk 0:02:45.1]} 15. Re1 {[%clk 0:02:49]}
15... Rd8 {[%clk 0:02:43.2]} 16. Qc2 {[%clk 0:02:37.9]} 16... Bb4 {[%clk
0:02:38.7]} 17. Rd1 {[%clk 0:02:38.2]} 17... O-O {[%clk 0:02:23.6]} 18. Bb2
{[%clk 0:02:29.1]} 18... Ba3 {[%clk 0:02:22.2]} 19. Bc3 {[%clk 0:02:27]} 19...
Bb4 {[%clk 0:02:22.6]} 20. Rd2 {[%clk 0:02:14.1]} 20... Bxc3 {[%clk 0:02:22.1]}
21. Qxc3 {[%clk 0:02:15]} 21... Rd7 {[%clk 0:02:22.6]} 22. Rad1 {[%clk
0:02:15.5]} 22... Rfd8 {[%clk 0:02:22.9]} 23. Kg2 {[%clk 0:02:16]} 23... Qd6
{[%clk 0:02:21.6]} 24. h4 {[%clk 0:02:08.9]} 24... e5 {[%clk 0:02:07.7]} 25. d5
{[%clk 0:01:49.4]} 25... e4 {[%clk 0:02:07.6]} 26. Be2 {[%clk 0:01:47.5]} 26...
cxd5 {[%clk 0:02:07.9]} 27. Rd4 {[%clk 0:01:42.8]} 27... Qe5 {[%clk 0:01:58.9]}
28. c5 {[%clk 0:01:40.2]} 28... Rc7 {[%clk 0:01:48.9]} 29. b4 {[%clk 0:01:40.2]}
29... Re8 {[%clk 0:01:45.6]} 30. Qe3 {[%clk 0:01:33.7]} 30... a5 {[%clk
0:01:43.5]} 31. a3 {[%clk 0:01:31]} 31... axb4 {[%clk 0:01:43.9]} 32. axb4
{[%clk 0:01:31.9]} 32... Ra8 {[%clk 0:01:44]} 33. Qg5 {[%clk 0:01:29.8]} 33...
Qe6 {[%clk 0:01:31.5]} 34. Qf4 {[%clk 0:01:25.6]} 34... Re7 {[%clk 0:01:28.4]}
35. g4 {[%clk 0:01:08.4]} 35... e3 {[%clk 0:01:19.5]} 36. fxe3 {[%clk 0:01:05]}
36... Qxe3 {[%clk 0:01:11.8]} 37. Qxe3 {[%clk 0:01:05.2]} 37... Rxe3 {[%clk
0:01:12.4]} 38. Bf3 {[%clk 0:01:01.4]} 38... Ra2+ {[%clk 0:01:11.7]} 39. R1d2
{[%clk 0:01:01.5]} 39... Rxd2+ {[%clk 0:01:11.6]} 40. Rxd2 {[%clk 0:01:02.4]}
40... Rb3 {[%clk 0:01:11.8]} 41. g5 {[%clk 0:00:55.2]} 41... Ne4 {[%clk
0:01:08.1]} 42. Rxd5 {[%clk 0:00:53.3]} 42... Rb2+ {[%clk 0:01:07.2]} 43. Kh3
{[%clk 0:00:50.4]} 43... Rxb4 {[%clk 0:00:53.1]} 44. Re5 {[%clk 0:00:47.5]}
44... Rb3 {[%clk 0:00:42.8]} 45. Kg2 {[%clk 0:00:38.7]} 45... Rb2+ {[%clk
0:00:42.5]} 46. Kg1 {[%clk 0:00:38.5]} 46... Ng3 {[%clk 0:00:19.6]} 47. Re8+
{[%clk 0:00:35.2]} 47... Kh7 {[%clk 0:00:19.7]} 48. Re7 {[%clk 0:00:33.4]} 48...
Nf5 {[%clk 0:00:18.5]} 49. Rxb7 {[%clk 0:00:31.2]} 49... Rc2 {[%clk 0:00:17.7]}
50. c6 {[%clk 0:00:20.7]} 50... Nd4 {[%clk 0:00:17.7]} 51. Be4 {[%clk
0:00:18.2]} 51... Rc1+ {[%clk 0:00:17.2]} 52. Kf2 {[%clk 0:00:18.6]} 52... Rxc6
{[%clk 0:00:03.5]} 53. Bxc6 {[%clk 0:00:18]} 53... Nxc6 {[%clk 0:00:04.4]} 54.
Rxf7 {[%clk 0:00:18.1]} 54... Nd4 {[%clk 0:00:05]} 55. Kg3 {[%clk 0:00:14.8]}
55... Nc6 {[%clk 0:00:01.1]} 56. Rc7 {[%clk 0:00:13.1]} 56... Ne5 {[%clk
0:00:01.5]} 57. Kf4 {[%clk 0:00:12.7]} 57... Nd3+ {[%clk 0:00:02.1]} 58. Ke4
{[%clk 0:00:12.7]} 58... Nf2+ {[%clk 0:00:02.6]} 59. Ke5 {[%clk 0:00:12.2]}
59... Nd3+ {[%clk 0:00:02.9]} 60. Ke6 {[%clk 0:00:12.2]} 60... Nf4+ {[%clk
0:00:03.2]} 61. Kf7 {[%clk 0:00:12.8]} 61... Nh5 {[%clk 0:00:03.1]} 62. Rc8
{[%clk 0:00:11.5]} 62... Nf4 {[%clk 0:00:03.2]} 63. Ra8 {[%clk 0:00:11.3]} 63...
Nd3 {[%clk 0:00:02.1]} 64. Re8 {[%clk 0:00:07.8]} 64... Nf4 {[%clk 0:00:01.9]}
65. Rd8 {[%clk 0:00:08.2]} 1-0

[Event "Late-Titled-Tuesday-Blitz-March-19-2024"]
[Site "Chess.com"]
[Date "2024.03.19"]
[Round "7"]
[White "Boorchess"]
[Black "martinmena"]
[Result "1-0"]
[WhiteElo "2540"]
[BlackElo "2251"]
[TimeControl "180+1"]
[EndTime "15:17:29 PDT"]
[Termination "Boorchess won by checkmate"]

1. d4 {[%clk 0:03:00.9]} 1... d5 {[%clk 0:02:53]} 2. c4 {[%clk 0:03:00.9]} 2...
e6 {[%clk 0:02:53.2]} 3. Nf3 {[%clk 0:03:00.2]} 3... Nf6 {[%clk 0:02:53.1]} 4.
g3 {[%clk 0:03:00.2]} 4... Be7 {[%clk 0:02:52.9]} 5. Bg2 {[%clk 0:03:00.3]} 5...
O-O {[%clk 0:02:53.5]} 6. O-O {[%clk 0:03:00]} 6... dxc4 {[%clk 0:02:53.9]} 7.
Ne5 {[%clk 0:02:59.9]} 7... Nc6 {[%clk 0:02:53]} 8. Bxc6 {[%clk 0:02:59.3]} 8...
bxc6 {[%clk 0:02:53.9]} 9. Nxc6 {[%clk 0:02:59.6]} 9... Qe8 {[%clk 0:02:54.6]}
10. Nxe7+ {[%clk 0:03:00.2]} 10... Qxe7 {[%clk 0:02:55.5]} 11. Na3 {[%clk
0:03:00.7]} 11... c5 {[%clk 0:02:50.9]} 12. dxc5 {[%clk 0:03:00.3]} 12... Qxc5
{[%clk 0:02:50.9]} 13. Qc2 {[%clk 0:02:56.4]} 13... Bb7 {[%clk 0:02:32.5]} 14.
Qxc4 {[%clk 0:02:52]} 14... Qxc4 {[%clk 0:02:31.4]} 15. Nxc4 {[%clk 0:02:51.6]}
15... Ba6 {[%clk 0:02:31.5]} 16. b3 {[%clk 0:02:51.4]} 16... Bxc4 {[%clk
0:02:26.9]} 17. bxc4 {[%clk 0:02:51.1]} 17... Rfc8 {[%clk 0:02:27.3]} 18. Bb2
{[%clk 0:02:48.7]} 18... Rxc4 {[%clk 0:02:13.9]} 19. Bxf6 {[%clk 0:02:35.9]}
19... gxf6 {[%clk 0:02:14.8]} 20. Rfc1 {[%clk 0:02:24.7]} 20... Rac8 {[%clk
0:02:14.2]} 21. Rxc4 {[%clk 0:02:24.2]} 21... Rxc4 {[%clk 0:02:15.1]} 22. f3
{[%clk 0:02:23]} 22... Rc2 {[%clk 0:02:12.2]} 23. Kf2 {[%clk 0:02:23.2]} 23...
a5 {[%clk 0:02:09.9]} 24. a4 {[%clk 0:02:19]} 24... f5 {[%clk 0:02:05.4]} 25.
Ke3 {[%clk 0:02:13.8]} 25... Rb2 {[%clk 0:02:02.9]} 26. Kd3 {[%clk 0:02:08.3]}
26... Kg7 {[%clk 0:02:00.4]} 27. Rc1 {[%clk 0:02:01.1]} 27... Ra2 {[%clk
0:01:36.9]} 28. Rc4 {[%clk 0:02:00.2]} 28... h5 {[%clk 0:01:35.4]} 29. Ke3
{[%clk 0:01:51.3]} 29... Kg6 {[%clk 0:01:23.2]} 30. h3 {[%clk 0:01:43.3]} 30...
f6 {[%clk 0:01:20.1]} 31. Kf2 {[%clk 0:01:35.7]} 31... e5 {[%clk 0:01:19.1]} 32.
Ke3 {[%clk 0:01:30.3]} 32... Ra3+ {[%clk 0:01:09]} 33. Kf2 {[%clk 0:01:29.7]}
33... Kf7 {[%clk 0:01:01.5]} 34. h4 {[%clk 0:01:25.4]} 34... Ke6 {[%clk
0:00:56.3]} 35. Rc6+ {[%clk 0:01:01.3]} 35... Ke7 {[%clk 0:00:55.7]} 36. Rc7+
{[%clk 0:00:57.6]} 36... Kd6 {[%clk 0:00:55.6]} 37. Rh7 {[%clk 0:00:55.9]} 37...
Rxa4 {[%clk 0:00:53.4]} 38. Rxh5 {[%clk 0:00:55.9]} 38... Ra1 {[%clk 0:00:48.5]}
39. Rxf5 {[%clk 0:00:51.6]} 39... Ke6 {[%clk 0:00:44.4]} 40. Rh5 {[%clk
0:00:51.7]} 40... a4 {[%clk 0:00:44.8]} 41. Rh7 {[%clk 0:00:51.9]} 41... a3
{[%clk 0:00:44.7]} 42. Ra7 {[%clk 0:00:51.8]} 42... a2 {[%clk 0:00:43.2]} 43.
Ke3 {[%clk 0:00:49.8]} 43... f5 {[%clk 0:00:20.2]} 44. h5 {[%clk 0:00:46]} 44...
Kf6 {[%clk 0:00:05.9]} 45. h6 {[%clk 0:00:41.7]} 45... Rg1 {[%clk 0:00:01.4]}
46. Rxa2 {[%clk 0:00:40]} 46... Rxg3 {[%clk 0:00:01.7]} 47. Ra6+ {[%clk
0:00:38.7]} 47... Kg5 {[%clk 0:00:01]} 48. Re6 {[%clk 0:00:38.6]} 48... Rh3
{[%clk 0:00:01.4]} 49. Rxe5 {[%clk 0:00:35.7]} 49... Rxh6 {[%clk 0:00:01.8]} 50.
Re8 {[%clk 0:00:32.3]} 50... Rb6 {[%clk 0:00:02.3]} 51. Rg8+ {[%clk 0:00:29.6]}
51... Kf6 {[%clk 0:00:02.9]} 52. Kf4 {[%clk 0:00:28.6]} 52... Rb4+ {[%clk
0:00:03]} 53. e4 {[%clk 0:00:28.8]} 53... Rb3 {[%clk 0:00:03.3]} 54. Rf8+ {[%clk
0:00:27.5]} 54... Ke6 {[%clk 0:00:03.3]} 55. Rxf5 {[%clk 0:00:28.1]} 55... Rb1
{[%clk 0:00:03]} 56. Ra5 {[%clk 0:00:28]} 56... Kf6 {[%clk 0:00:03.1]} 57. Ra6+
{[%clk 0:00:28.1]} 57... Kf7 {[%clk 0:00:03.8]} 58. Kf5 {[%clk 0:00:28.3]} 58...
Rb5+ {[%clk 0:00:04.3]} 59. e5 {[%clk 0:00:28.4]} 59... Rb7 {[%clk 0:00:04.3]}
60. f4 {[%clk 0:00:28.3]} 60... Rc7 {[%clk 0:00:04.2]} 61. Kg5 {[%clk
0:00:28.1]} 61... Rb7 {[%clk 0:00:03.8]} 62. f5 {[%clk 0:00:25.4]} 62... Rc7
{[%clk 0:00:03.2]} 63. Ra8 {[%clk 0:00:22.1]} 63... Kg7 {[%clk 0:00:02.5]} 64.
f6+ {[%clk 0:00:21.7]} 64... Kf7 {[%clk 0:00:02.8]} 65. Kf5 {[%clk 0:00:21.2]}
65... Rb7 {[%clk 0:00:02.8]} 66. e6# {[%clk 0:00:20.9]} 1-0

[Event "Late-Titled-Tuesday-Blitz-March-19-2024"]
[Site "Chess.com"]
[Date "2024.03.19"]
[Round "7"]
[White "picturesquecheck"]
[Black "Shahdad2007"]
[Result "0-1"]
[WhiteElo "2416"]
[BlackElo "2602"]
[TimeControl "180+1"]
[EndTime "15:17:30 PDT"]
[Termination "Shahdad2007 won by checkmate"]

1. e4 {[%clk 0:03:00.9]} 1... Nf6 {[%clk 0:02:59.5]} 2. e5 {[%clk 0:03:00.5]}
2... Nd5 {[%clk 0:02:59.6]} 3. d4 {[%clk 0:03:00.3]} 3... d6 {[%clk 0:02:59.7]}
4. Nf3 {[%clk 0:03:00.7]} 4... dxe5 {[%clk 0:02:58.8]} 5. Nxe5 {[%clk
0:03:01.6]} 5... e6 {[%clk 0:02:58.4]} 6. Be2 {[%clk 0:03:01.1]} 6... Be7 {[%clk
0:02:58.1]} 7. O-O {[%clk 0:03:01.1]} 7... O-O {[%clk 0:02:58.1]} 8. c3 {[%clk
0:03:00.9]} 8... c5 {[%clk 0:02:57.3]} 9. dxc5 {[%clk 0:02:57.9]} 9... Bxc5
{[%clk 0:02:56.5]} 10. Nd2 {[%clk 0:02:58.2]} 10... Nf6 {[%clk 0:02:55.2]} 11.
Nb3 {[%clk 0:02:54.7]} 11... Be7 {[%clk 0:02:54.8]} 12. Bg5 {[%clk 0:02:53.9]}
12... h6 {[%clk 0:02:53]} 13. Bh4 {[%clk 0:02:48.2]} 13... Nbd7 {[%clk
0:02:52.6]} 14. Nc4 {[%clk 0:02:44.2]} 14... Nd5 {[%clk 0:02:42.1]} 15. Bxe7
{[%clk 0:02:38.2]} 15... Qxe7 {[%clk 0:02:43]} 16. Bf3 {[%clk 0:02:38.2]} 16...
N7f6 {[%clk 0:02:43.1]} 17. Re1 {[%clk 0:02:37.4]} 17... Rd8 {[%clk 0:02:39.1]}
18. Qc2 {[%clk 0:02:35.8]} 18... b6 {[%clk 0:02:37.9]} 19. Rad1 {[%clk
0:02:32.5]} 19... Bb7 {[%clk 0:02:37.6]} 20. Nd4 {[%clk 0:02:29]} 20... Rac8
{[%clk 0:02:35.8]} 21. Ne5 {[%clk 0:02:23.6]} 21... Rc7 {[%clk 0:02:25.2]} 22.
Nxf7 {[%clk 0:02:08.5]} 22... Kxf7 {[%clk 0:02:19.1]} 23. Nxe6 {[%clk
0:02:05.1]} 23... Qxe6 {[%clk 0:02:18.1]} 24. Rxe6 {[%clk 0:01:59.7]} 24... Kxe6
{[%clk 0:02:19]} 25. Re1+ {[%clk 0:01:46.1]} 25... Kf7 {[%clk 0:02:18.1]} 26.
Qf5 {[%clk 0:01:43]} 26... Ne7 {[%clk 0:02:16.3]} 27. Qe6+ {[%clk 0:01:39.3]}
27... Kf8 {[%clk 0:02:15.1]} 28. Bxb7 {[%clk 0:01:16]} 28... Rxb7 {[%clk
0:02:16]} 29. h3 {[%clk 0:01:15.5]} 29... Rbd7 {[%clk 0:02:06.8]} 30. Re3 {[%clk
0:01:10.7]} 30... Ng6 {[%clk 0:02:02]} 31. Rf3 {[%clk 0:01:01.1]} 31... Rd6
{[%clk 0:01:49.4]} 32. Qb3 {[%clk 0:00:35.6]} 32... Nh4 {[%clk 0:01:29.6]} 33.
Rf4 {[%clk 0:00:34.4]} 33... g5 {[%clk 0:01:29.3]} 34. Ra4 {[%clk 0:00:27.2]}
34... a5 {[%clk 0:01:23.7]} 35. Rd4 {[%clk 0:00:26.4]} 35... Nf5 {[%clk
0:00:56.4]} 36. Rxd6 {[%clk 0:00:26]} 36... Rxd6 {[%clk 0:00:55.9]} 37. g3
{[%clk 0:00:26.5]} 37... Ne4 {[%clk 0:00:49.9]} 38. Qc2 {[%clk 0:00:21.4]} 38...
Re6 {[%clk 0:00:46.3]} 39. b4 {[%clk 0:00:17.9]} 39... Nfd6 {[%clk 0:00:40.5]}
40. bxa5 {[%clk 0:00:17.3]} 40... bxa5 {[%clk 0:00:39.9]} 41. c4 {[%clk
0:00:17.8]} 41... Re5 {[%clk 0:00:39.4]} 42. Qb2 {[%clk 0:00:15.1]} 42... Rc5
{[%clk 0:00:17.3]} 43. Qh8+ {[%clk 0:00:13.1]} 43... Kf7 {[%clk 0:00:17.7]} 44.
Qh7+ {[%clk 0:00:12.9]} 44... Ke8 {[%clk 0:00:18.2]} 45. Qg6+ {[%clk 0:00:11.5]}
45... Kd7 {[%clk 0:00:17.9]} 46. Qg7+ {[%clk 0:00:10.9]} 46... Kc6 {[%clk
0:00:17.1]} 47. Qxh6 {[%clk 0:00:11.2]} 47... Rxc4 {[%clk 0:00:17.4]} 48. Qh8
{[%clk 0:00:10]} 48... Rc1+ {[%clk 0:00:16.6]} 49. Kg2 {[%clk 0:00:10.5]} 49...
Rc2 {[%clk 0:00:17.5]} 50. Qa8+ {[%clk 0:00:10.2]} 50... Kd7 {[%clk 0:00:16.6]}
51. Qa7+ {[%clk 0:00:09.2]} 51... Ke6 {[%clk 0:00:15.5]} 52. Qxa5 {[%clk
0:00:09.5]} 52... Rxf2+ {[%clk 0:00:14.6]} 53. Kg1 {[%clk 0:00:10]} 53... Rf3
{[%clk 0:00:14.6]} 54. Qa8 {[%clk 0:00:06.8]} 54... Rxg3+ {[%clk 0:00:13.9]} 55.
Kh2 {[%clk 0:00:06.6]} 55... Re3 {[%clk 0:00:13.8]} 56. Qg8+ {[%clk 0:00:06.5]}
56... Ke5 {[%clk 0:00:13.9]} 57. Qg7+ {[%clk 0:00:06.5]} 57... Kd5 {[%clk
0:00:14]} 58. Qg8+ {[%clk 0:00:07]} 58... Kd4 {[%clk 0:00:14.2]} 59. a4 {[%clk
0:00:06.5]} 59... Nf5 {[%clk 0:00:09.8]} 60. Qh8+ {[%clk 0:00:05.1]} 60... Kd3
{[%clk 0:00:09]} 61. Qd8+ {[%clk 0:00:04.8]} 61... Ke2 {[%clk 0:00:09.3]} 62.
Qd7 {[%clk 0:00:02.7]} 62... Nh4 {[%clk 0:00:08.9]} 63. Qb5+ {[%clk 0:00:02.8]}
63... Kf2 {[%clk 0:00:06.3]} 64. Qb6 {[%clk 0:00:02.5]} 64... Nf3+ {[%clk
0:00:05.9]} 65. Kh1 {[%clk 0:00:03.1]} 65... Ng3# {[%clk 0:00:06.3]} 0-1